[Event "*** SCC Grand Prix: Titled Tuesday Blitz"]
[Site "Chess.com"]
[Date "2020.10.13"]
[Round "7"]
[White "ASVZ"]
[Black "FMalexhdez"]
[Result "1-0"]
[WhiteElo "2450"]
[BlackElo "2271"]
[TimeControl "180+1"]
[EndTime "11:16:29 PDT"]
[Termination "ASVZ won by resignation"]

1. e4 {[%clk 0:03:00.9]} 1... c5 {[%clk 0:02:58.3]} 2. c3 {[%clk 0:03:00]} 2...
g6 {[%clk 0:02:57]} 3. d4 {[%clk 0:02:59.4]} 3... cxd4 {[%clk 0:02:57.5]} 4.
cxd4 {[%clk 0:02:58.2]} 4... Bg7 {[%clk 0:02:58.2]} 5. Nc3 {[%clk 0:02:58.8]}
5... d6 {[%clk 0:02:53.7]} 6. Nf3 {[%clk 0:02:58]} 6... Nf6 {[%clk 0:02:53.6]}
7. Bd3 {[%clk 0:02:58.4]} 7... O-O {[%clk 0:02:53.4]} 8. O-O {[%clk 0:02:58.9]}
8... Nc6 {[%clk 0:02:48.1]} 9. d5 {[%clk 0:02:58.5]} 9... Ne5 {[%clk 0:02:47.5]}
10. Nxe5 {[%clk 0:02:59]} 10... dxe5 {[%clk 0:02:47.7]} 11. h3 {[%clk
0:02:50.9]} 11... Ne8 {[%clk 0:02:40.5]} 12. Bg5 {[%clk 0:02:49.8]} 12... h6
{[%clk 0:02:38.4]} 13. Be3 {[%clk 0:02:49.5]} 13... Nd6 {[%clk 0:02:37.1]} 14.
Qd2 {[%clk 0:02:48.6]} 14... Kh7 {[%clk 0:02:36.6]} 15. Rac1 {[%clk 0:02:48.1]}
15... Bd7 {[%clk 0:02:32.1]} 16. b4 {[%clk 0:02:46.4]} 16... f5 {[%clk
0:02:21.8]} 17. f3 {[%clk 0:02:46]} 17... f4 {[%clk 0:02:21.1]} 18. Bf2 {[%clk
0:02:45.7]} 18... g5 {[%clk 0:02:18.1]} 19. a4 {[%clk 0:02:45.5]} 19... h5
{[%clk 0:02:16.8]} 20. Nb5 {[%clk 0:02:39.4]} 20... Nxb5 {[%clk 0:02:04.6]} 21.
axb5 {[%clk 0:02:33.8]} 21... b6 {[%clk 0:01:54.5]} 22. Rc3 {[%clk 0:02:28.9]}
22... Qe8 {[%clk 0:01:40.3]} 23. Rc6 {[%clk 0:02:25.8]} 23... Bxc6 {[%clk
0:01:36.3]} 24. bxc6 {[%clk 0:02:25.9]} 24... e6 {[%clk 0:01:27.4]} 25. Ba6
{[%clk 0:02:24.6]} 25... exd5 {[%clk 0:01:26.1]} 26. exd5 {[%clk 0:02:24.6]}
26... Rf7 {[%clk 0:01:13.1]} 27. b5 {[%clk 0:02:17.2]} 27... e4 {[%clk
0:01:02.4]} 28. fxe4 {[%clk 0:02:09]} 28... Qxe4 {[%clk 0:01:01.6]} 29. d6
{[%clk 0:02:09]} 29... g4 {[%clk 0:00:50.3]} 30. d7 {[%clk 0:02:00.1]} 30...
gxh3 {[%clk 0:00:44.9]} 31. gxh3 {[%clk 0:01:57.9]} 31... Be5 {[%clk 0:00:40.2]}
32. Re1 {[%clk 0:00:44.9]} 32... Rg8+ {[%clk 0:00:35.8]} 33. Kf1 {[%clk
0:00:45.4]} 33... Qg2+ {[%clk 0:00:16.3]} 34. Ke2 {[%clk 0:00:45.6]} 34... f3+
{[%clk 0:00:09.7]} 35. Kd1 {[%clk 0:00:45.7]} 35... Bf4 {[%clk 0:00:10.3]} 36.
Qc2+ {[%clk 0:00:42.7]} 36... Qg6 {[%clk 0:00:09.2]} 37. Qxg6+ {[%clk
0:00:38.6]} 37... Kxg6 {[%clk 0:00:09.2]} 38. Rg1+ {[%clk 0:00:38.1]} 38... Kh7
{[%clk 0:00:08.6]} 39. Rxg8 {[%clk 0:00:38.2]} 1-0

[Event "*** SCC Grand Prix: Titled Tuesday Blitz"]
[Site "Chess.com"]
[Date "2020.10.13"]
[Round "7"]
[White "Sesleria"]
[Black "poppy73"]
[Result "0-1"]
[WhiteElo "2029"]
[BlackElo "2234"]
[TimeControl "180+1"]
[EndTime "11:16:30 PDT"]
[Termination "poppy73 won by resignation"]

1. d4 {[%clk 0:02:59.7]} 1... Nf6 {[%clk 0:02:59.6]} 2. c4 {[%clk 0:02:59.6]}
2... g6 {[%clk 0:03:00.1]} 3. Nc3 {[%clk 0:02:58.9]} 3... Bg7 {[%clk 0:03:00.5]}
4. e4 {[%clk 0:02:58.6]} 4... d6 {[%clk 0:03:01]} 5. Nf3 {[%clk 0:02:58.7]} 5...
O-O {[%clk 0:03:01.4]} 6. Be2 {[%clk 0:02:58.1]} 6... e5 {[%clk 0:03:01.6]} 7.
d5 {[%clk 0:02:58.2]} 7... a5 {[%clk 0:03:00.5]} 8. Bg5 {[%clk 0:02:57.9]} 8...
h6 {[%clk 0:02:53.6]} 9. Bh4 {[%clk 0:02:56.1]} 9... Na6 {[%clk 0:02:53.3]} 10.
Nd2 {[%clk 0:02:55.2]} 10... Qe8 {[%clk 0:02:51.1]} 11. O-O {[%clk 0:02:48.9]}
11... Nd7 {[%clk 0:02:42]} 12. a3 {[%clk 0:02:43.2]} 12... f5 {[%clk 0:02:30.1]}
13. f3 {[%clk 0:02:27.3]} 13... g5 {[%clk 0:02:23.4]} 14. Bf2 {[%clk 0:02:19.6]}
14... f4 {[%clk 0:02:23.6]} 15. Nb5 {[%clk 0:02:13.8]} 15... Nf6 {[%clk
0:02:11.1]} 16. b4 {[%clk 0:02:12.2]} 16... h5 {[%clk 0:02:04.2]} 17. c5 {[%clk
0:02:11.5]} 17... dxc5 {[%clk 0:01:50.3]} 18. bxc5 {[%clk 0:02:11]} 18... g4
{[%clk 0:01:48.8]} 19. d6 {[%clk 0:02:08.4]} 19... cxd6 {[%clk 0:01:35.9]} 20.
Nxd6 {[%clk 0:02:06.8]} 20... Qg6 {[%clk 0:01:35.8]} 21. Nxc8 {[%clk 0:01:55]}
21... Raxc8 {[%clk 0:01:26.8]} 22. Qb3+ {[%clk 0:01:50.4]} 22... Kh8 {[%clk
0:01:22.6]} 23. Rac1 {[%clk 0:01:49.1]} 23... g3 {[%clk 0:01:03.7]} 24. hxg3
{[%clk 0:01:47]} 24... fxg3 {[%clk 0:01:04.6]} 25. Be3 {[%clk 0:01:43.9]} 25...
Bh6 {[%clk 0:00:43.3]} 26. f4 {[%clk 0:01:30.9]} 26... exf4 {[%clk 0:00:40.2]}
27. Bxf4 {[%clk 0:01:30.6]} 27... Nxc5 {[%clk 0:00:33.1]} 28. Qb2 {[%clk
0:00:54.5]} 28... Bg7 {[%clk 0:00:18.7]} 29. e5 {[%clk 0:00:54.4]} 29... Nd5
{[%clk 0:00:13.2]} 30. Nc4 {[%clk 0:00:51.3]} 30... Nxf4 {[%clk 0:00:09.4]} 31.
Bf3 {[%clk 0:00:50.5]} 31... Ncd3 {[%clk 0:00:08.1]} 32. Qxb7 {[%clk 0:00:49.6]}
32... Nxc1 {[%clk 0:00:07.6]} 33. Rxc1 {[%clk 0:00:50.4]} 33... Qf7 {[%clk
0:00:05.2]} 34. Qe4 {[%clk 0:00:49.9]} 34... Rc7 {[%clk 0:00:03.6]} 35. Re1
{[%clk 0:00:50]} 35... Rxc4 {[%clk 0:00:02.5]} 36. Qxc4 {[%clk 0:00:49.8]} 36...
Qxc4 {[%clk 0:00:02]} 0-1

[Event "*** SCC Grand Prix: Titled Tuesday Blitz"]
[Site "Chess.com"]
[Date "2020.10.13"]
[Round "7"]
[White "INLOVEWITHF"]
[Black "MarceloPlaya"]
[Result "1-0"]
[WhiteElo "2524"]
[BlackElo "2270"]
[TimeControl "180+1"]
[EndTime "11:16:31 PDT"]
[Termination "INLOVEWITHF won on time"]

1. e4 {[%clk 0:02:08.5]} 1... e6 {[%clk 0:02:50]} 2. d4 {[%clk 0:02:08]} 2... d5
{[%clk 0:02:48.8]} 3. Nc3 {[%clk 0:02:08.6]} 3... Bb4 {[%clk 0:02:45]} 4. e5
{[%clk 0:02:08.9]} 4... c5 {[%clk 0:02:10.1]} 5. a3 {[%clk 0:02:09]} 5... Bxc3+
{[%clk 0:02:09]} 6. bxc3 {[%clk 0:02:09.9]} 6... Ne7 {[%clk 0:02:07.8]} 7. h4
{[%clk 0:02:08.3]} 7... Qa5 {[%clk 0:02:06]} 8. Bd2 {[%clk 0:02:06.7]} 8... Nbc6
{[%clk 0:02:04.3]} 9. c4 {[%clk 0:02:04.9]} 9... Qc7 {[%clk 0:02:02.8]} 10. Nf3
{[%clk 0:01:55.4]} 10... cxd4 {[%clk 0:02:00.4]} 11. Bf4 {[%clk 0:01:48.8]}
11... Ng6 {[%clk 0:01:54.6]} 12. Bg3 {[%clk 0:01:48.6]} 12... Ngxe5 {[%clk
0:01:53.2]} 13. Nxe5 {[%clk 0:01:48.4]} 13... Nxe5 {[%clk 0:01:52.6]} 14. Qxd4
{[%clk 0:01:48.9]} 14... Qa5+ {[%clk 0:01:50.2]} 15. c3 {[%clk 0:01:48.3]} 15...
f6 {[%clk 0:01:30.6]} 16. Bxe5 {[%clk 0:01:43.2]} 16... fxe5 {[%clk 0:01:25.1]}
17. Qxe5 {[%clk 0:01:44.1]} 17... O-O {[%clk 0:01:23.4]} 18. Bd3 {[%clk
0:01:42.2]} 18... Bd7 {[%clk 0:01:09.1]} 19. Rh3 {[%clk 0:01:41.5]} 19... Rf6
{[%clk 0:01:01.2]} 20. Rg3 {[%clk 0:01:34.6]} 20... Raf8 {[%clk 0:00:57.1]} 21.
f3 {[%clk 0:01:24.4]} 21... Qb6 {[%clk 0:00:48.8]} 22. O-O-O {[%clk 0:01:20.7]}
22... Qb3 {[%clk 0:00:39.9]} 23. cxd5 {[%clk 0:01:11.7]} 23... exd5 {[%clk
0:00:37.3]} 24. Bc2 {[%clk 0:00:53.5]} 24... Qxa3+ {[%clk 0:00:36.2]} 25. Kd2
{[%clk 0:00:54.1]} 25... Bf5 {[%clk 0:00:28.9]} 26. Bxf5 {[%clk 0:00:52]} 26...
Qc5 {[%clk 0:00:08.3]} 27. Bd3 {[%clk 0:00:49.6]} 27... Qf2+ {[%clk 0:00:07.9]}
28. Be2 {[%clk 0:00:49.3]} 28... R6f7 {[%clk 0:00:05.2]} 29. Rg4 {[%clk
0:00:44.3]} 29... a5 {[%clk 0:00:04.2]} 30. Qd4 {[%clk 0:00:43.9]} 30... Qxd4+
{[%clk 0:00:02.6]} 31. cxd4 {[%clk 0:00:44.8]} 31... b5 {[%clk 0:00:01.8]} 32.
Rb1 {[%clk 0:00:45.4]} 32... Rb7 {[%clk 0:00:01.6]} 33. Rxb5 {[%clk 0:00:44]}
1-0

[Event "*** SCC Grand Prix: Titled Tuesday Blitz"]
[Site "Chess.com"]
[Date "2020.10.13"]
[Round "7"]
[White "alexrustemov"]
[Black "Snegokhod"]
[Result "0-1"]
[WhiteElo "2667"]
[BlackElo "2433"]
[TimeControl "180+1"]
[EndTime "11:16:37 PDT"]
[Termination "Snegokhod won by checkmate"]

1. c4 {[%clk 0:03:00.9]} 1... Nf6 {[%clk 0:02:54.9]} 2. Nc3 {[%clk 0:03:00.3]}
2... d5 {[%clk 0:02:53.7]} 3. cxd5 {[%clk 0:02:58.7]} 3... Nxd5 {[%clk
0:02:54.4]} 4. Nf3 {[%clk 0:02:52.8]} 4... g6 {[%clk 0:02:54.1]} 5. e4 {[%clk
0:02:51.5]} 5... Nxc3 {[%clk 0:02:54.2]} 6. dxc3 {[%clk 0:02:50.7]} 6... Qxd1+
{[%clk 0:02:54.7]} 7. Kxd1 {[%clk 0:02:51]} 7... f6 {[%clk 0:02:55.4]} 8. Kc2
{[%clk 0:02:43.1]} 8... e5 {[%clk 0:02:55.7]} 9. Be3 {[%clk 0:02:41.5]} 9... Be6
{[%clk 0:02:55.2]} 10. Nd2 {[%clk 0:02:38.5]} 10... Nd7 {[%clk 0:02:54.5]} 11.
Bc4 {[%clk 0:02:34.1]} 11... Kf7 {[%clk 0:02:54.3]} 12. Bxe6+ {[%clk 0:02:31]}
12... Kxe6 {[%clk 0:02:54.3]} 13. Nb3 {[%clk 0:02:30]} 13... Bd6 {[%clk
0:02:47.3]} 14. f3 {[%clk 0:02:20]} 14... f5 {[%clk 0:02:45.3]} 15. Rhe1 {[%clk
0:02:16.2]} 15... f4 {[%clk 0:02:41.4]} 16. Bf2 {[%clk 0:02:13.2]} 16... g5
{[%clk 0:02:40.7]} 17. h3 {[%clk 0:02:12.8]} 17... h5 {[%clk 0:02:38.9]} 18. Rh1
{[%clk 0:02:11.6]} 18... Nf6 {[%clk 0:02:32.4]} 19. Nc1 {[%clk 0:02:01.4]} 19...
g4 {[%clk 0:02:30.6]} 20. Bh4 {[%clk 0:01:49.8]} 20... gxf3 {[%clk 0:02:24]} 21.
gxf3 {[%clk 0:01:47]} 21... Rag8 {[%clk 0:02:20.2]} 22. Nd3 {[%clk 0:01:31.1]}
22... Rg2+ {[%clk 0:02:19.4]} 23. Kb3 {[%clk 0:01:30.9]} 23... Rhg8 {[%clk
0:02:15.8]} 24. Raf1 {[%clk 0:01:27.8]} 24... Nd7 {[%clk 0:02:00.3]} 25. Ne1
{[%clk 0:01:27]} 25... Nc5+ {[%clk 0:01:54.6]} 26. Ka3 {[%clk 0:01:25.6]} 26...
Nxe4+ {[%clk 0:01:24]} 27. b4 {[%clk 0:01:24.9]} 27... Nxc3 {[%clk 0:01:13.9]}
28. Nxg2 {[%clk 0:01:23.9]} 28... Rxg2 {[%clk 0:01:14.5]} 29. Rf2 {[%clk
0:01:22.6]} 29... Rxf2 {[%clk 0:01:06.8]} 30. Bxf2 {[%clk 0:01:23.5]} 30... a5
{[%clk 0:01:07.2]} 31. Kb3 {[%clk 0:01:22.9]} 31... axb4 {[%clk 0:01:06.7]} 32.
Rg1 {[%clk 0:01:22]} 32... e4 {[%clk 0:01:06.6]} 33. Rg5 {[%clk 0:01:19.1]}
33... exf3 {[%clk 0:01:01.6]} 34. Rxh5 {[%clk 0:00:57.4]} 34... Ne4 {[%clk
0:01:01.7]} 35. Rh6+ {[%clk 0:00:54.7]} 35... Kf5 {[%clk 0:00:58.7]} 36. Bg1
{[%clk 0:00:50.8]} 36... f2 {[%clk 0:00:58.6]} 37. Bxf2 {[%clk 0:00:50.6]} 37...
Nxf2 {[%clk 0:00:59]} 38. h4 {[%clk 0:00:49.5]} 38... Ng4 {[%clk 0:00:56.9]} 39.
Rh5+ {[%clk 0:00:48.3]} 39... Ke4 {[%clk 0:00:51.1]} 40. Rg5 {[%clk 0:00:47.4]}
40... Ne3 {[%clk 0:00:50]} 41. h5 {[%clk 0:00:44.4]} 41... f3 {[%clk 0:00:50.3]}
42. h6 {[%clk 0:00:36.1]} 42... f2 {[%clk 0:00:50.5]} 43. h7 {[%clk 0:00:36.4]}
43... f1=Q {[%clk 0:00:49.4]} 44. h8=Q {[%clk 0:00:36.4]} 44... Qd1+ {[%clk
0:00:32]} 45. Kb2 {[%clk 0:00:32.7]} 45... Qc2+ {[%clk 0:00:31.4]} 46. Ka1
{[%clk 0:00:31.9]} 46... Qc1# {[%clk 0:00:31.6]} 0-1

[Event "*** SCC Grand Prix: Titled Tuesday Blitz"]
[Site "Chess.com"]
[Date "2020.10.13"]
[Round "7"]
[White "maxip32"]
[Black "wannabe2700"]
[Result "0-1"]
[WhiteElo "2420"]
[BlackElo "2703"]
[TimeControl "180+1"]
[EndTime "11:16:38 PDT"]
[Termination "wannabe2700 won on time"]

1. e4 {[%clk 0:03:00.9]} 1... d5 {[%clk 0:02:58.1]} 2. exd5 {[%clk 0:03:00.3]}
2... Qxd5 {[%clk 0:02:59]} 3. Nc3 {[%clk 0:03:00.6]} 3... Qe5+ {[%clk
0:02:58.8]} 4. Be2 {[%clk 0:02:58.1]} 4... Bg4 {[%clk 0:02:57.9]} 5. d4 {[%clk
0:02:58.7]} 5... Bxe2 {[%clk 0:02:57.9]} 6. Ngxe2 {[%clk 0:02:57.8]} 6... Qa5
{[%clk 0:02:57.8]} 7. O-O {[%clk 0:02:57.4]} 7... Nf6 {[%clk 0:02:56.4]} 8. Bf4
{[%clk 0:02:53.6]} 8... Nc6 {[%clk 0:02:56.9]} 9. Qd3 {[%clk 0:02:51.7]} 9...
O-O-O {[%clk 0:02:56.1]} 10. Qc4 {[%clk 0:02:51.8]} 10... e6 {[%clk 0:02:49.1]}
11. a3 {[%clk 0:02:51.7]} 11... Qf5 {[%clk 0:02:17.7]} 12. Bg3 {[%clk
0:02:18.3]} 12... h5 {[%clk 0:02:15.6]} 13. h3 {[%clk 0:02:14.8]} 13... g5
{[%clk 0:02:13]} 14. b4 {[%clk 0:02:12.1]} 14... h4 {[%clk 0:02:13]} 15. Bh2
{[%clk 0:02:12.1]} 15... Bd6 {[%clk 0:02:09.4]} 16. Bxd6 {[%clk 0:02:10.2]}
16... Rxd6 {[%clk 0:02:09.7]} 17. b5 {[%clk 0:02:10]} 17... Ne7 {[%clk
0:02:08.6]} 18. Na4 {[%clk 0:01:43.9]} 18... g4 {[%clk 0:02:06.7]} 19. hxg4
{[%clk 0:01:42.9]} 19... Qxg4 {[%clk 0:01:46.9]} 20. f3 {[%clk 0:01:08.9]} 20...
Qg5 {[%clk 0:01:46.9]} 21. Qc5 {[%clk 0:00:47.5]} 21... Qe3+ {[%clk 0:01:46.2]}
22. Rf2 {[%clk 0:00:47.4]} 22... h3 {[%clk 0:01:43.6]} 23. gxh3 {[%clk
0:00:38.5]} 23... Rdd8 {[%clk 0:01:27.2]} 24. Qe5 {[%clk 0:00:13.2]} 24... Rdg8+
{[%clk 0:01:09.6]} 25. Kf1 {[%clk 0:00:13.4]} 25... Ned5 {[%clk 0:01:08.1]} 26.
Ng1 {[%clk 0:00:09.1]} 26... Rh5 {[%clk 0:00:31.5]} 27. Qxe3 {[%clk 0:00:07.2]}
27... Nxe3+ {[%clk 0:00:32.4]} 28. Ke2 {[%clk 0:00:06.9]} 28... Nxc2 {[%clk
0:00:33.1]} 29. Rd1 {[%clk 0:00:04.3]} 29... Rxb5 {[%clk 0:00:23.6]} 30. Nc3
{[%clk 0:00:01.9]} 30... Rb2 {[%clk 0:00:22]} 0-1

[Event "*** SCC Grand Prix: Titled Tuesday Blitz"]
[Site "Chess.com"]
[Date "2020.10.13"]
[Round "7"]
[White "Tenamu"]
[Black "SabKaD4ddy"]
[Result "1-0"]
[WhiteElo "2387"]
[BlackElo "2504"]
[TimeControl "180+1"]
[EndTime "11:16:38 PDT"]
[Termination "Tenamu won by resignation"]

1. e4 {[%clk 0:03:00.9]} 1... c5 {[%clk 0:02:59.7]} 2. Nf3 {[%clk 0:02:56.4]}
2... d6 {[%clk 0:03:00.1]} 3. d4 {[%clk 0:02:53.3]} 3... cxd4 {[%clk 0:03:01]}
4. Nxd4 {[%clk 0:02:54.2]} 4... Nf6 {[%clk 0:03:01.3]} 5. Nc3 {[%clk 0:02:54.5]}
5... a6 {[%clk 0:03:01.6]} 6. f3 {[%clk 0:02:53.1]} 6... e5 {[%clk 0:03:01.1]}
7. Nb3 {[%clk 0:02:52]} 7... Be7 {[%clk 0:03:01.5]} 8. Be3 {[%clk 0:02:47.9]}
8... Be6 {[%clk 0:03:01.4]} 9. g4 {[%clk 0:02:47.6]} 9... O-O {[%clk 0:02:59.6]}
10. h4 {[%clk 0:02:45]} 10... d5 {[%clk 0:02:56.2]} 11. g5 {[%clk 0:02:43.4]}
11... Nxe4 {[%clk 0:02:54.5]} 12. fxe4 {[%clk 0:02:38.6]} 12... d4 {[%clk
0:02:54.9]} 13. Nxd4 {[%clk 0:02:38.5]} 13... exd4 {[%clk 0:02:55.8]} 14. Qxd4
{[%clk 0:02:39.2]} 14... Nc6 {[%clk 0:02:54.5]} 15. Qxd8 {[%clk 0:02:37.1]}
15... Rfxd8 {[%clk 0:02:54.2]} 16. Rd1 {[%clk 0:02:35.5]} 16... Bb4 {[%clk
0:02:49.6]} 17. a3 {[%clk 0:02:29.3]} 17... Ba5 {[%clk 0:02:27.2]} 18. b4 {[%clk
0:02:24.3]} 18... Bc7 {[%clk 0:02:12.6]} 19. Be2 {[%clk 0:02:18.8]} 19... Bg3+
{[%clk 0:02:10.1]} 20. Bf2 {[%clk 0:02:18.2]} 20... Be5 {[%clk 0:02:11]} 21. Nd5
{[%clk 0:02:17.2]} 21... Bxd5 {[%clk 0:02:07.3]} 22. exd5 {[%clk 0:02:18.1]}
22... Bc3+ {[%clk 0:02:08]} 23. Kf1 {[%clk 0:02:17.4]} 23... Ne5 {[%clk
0:02:08.9]} 24. Kg2 {[%clk 0:02:17.4]} 24... Ng6 {[%clk 0:02:04.7]} 25. Bg3
{[%clk 0:02:10.6]} 25... Be5 {[%clk 0:01:59.7]} 26. h5 {[%clk 0:02:09.2]} 26...
Nf4+ {[%clk 0:01:58.7]} 27. Bxf4 {[%clk 0:02:08]} 27... Bxf4 {[%clk 0:01:59.6]}
28. g6 {[%clk 0:02:08.9]} 28... b5 {[%clk 0:01:53.8]} 29. gxf7+ {[%clk
0:02:05.2]} 29... Kf8 {[%clk 0:01:52.2]} 30. c4 {[%clk 0:02:01.5]} 30... bxc4
{[%clk 0:01:51.8]} 31. Bxc4 {[%clk 0:02:02.4]} 31... Rac8 {[%clk 0:01:50.5]} 32.
Bxa6 {[%clk 0:02:00.8]} 32... Rc2+ {[%clk 0:01:49.5]} 33. Kf3 {[%clk 0:01:59.6]}
33... Bg5 {[%clk 0:01:46.1]} 34. Kg4 {[%clk 0:01:57.4]} 34... h6 {[%clk
0:01:46]} 35. Rhf1 {[%clk 0:01:54.1]} 35... Rc3 {[%clk 0:01:34.3]} 36. Rf3
{[%clk 0:01:49.5]} 36... Rc2 {[%clk 0:01:27.4]} 37. d6 {[%clk 0:01:45.1]} 37...
Bd2 {[%clk 0:01:21.2]} 38. Rd3 {[%clk 0:01:41.2]} 38... Bg5 {[%clk 0:01:16.3]}
39. Bb7 {[%clk 0:01:30.2]} 39... Kxf7 {[%clk 0:01:10.3]} 40. Bd5+ {[%clk
0:01:20.5]} 40... Kf8 {[%clk 0:01:04.3]} 41. Rf3+ {[%clk 0:01:14.5]} 41... Bf6
{[%clk 0:01:03.9]} 42. Bb3 {[%clk 0:01:12.6]} 42... Rg2+ {[%clk 0:01:02.3]} 43.
Kh3 {[%clk 0:01:10.2]} 43... Rg5 {[%clk 0:01:01.9]} 44. a4 {[%clk 0:01:01.7]}
44... Rxh5+ {[%clk 0:01:02]} 45. Kg2 {[%clk 0:01:02]} 45... Rh4 {[%clk
0:00:54.5]} 46. b5 {[%clk 0:00:57.5]} 46... Re8 {[%clk 0:00:49.9]} 47. d7 {[%clk
0:00:54.2]} 47... Rd8 {[%clk 0:00:44.4]} 48. a5 {[%clk 0:00:47.7]} 48... Rb4
{[%clk 0:00:43.7]} 49. b6 {[%clk 0:00:47.5]} 49... Rb5 {[%clk 0:00:43.9]} 50.
Rd5 {[%clk 0:00:45.1]} 50... Rxd5 {[%clk 0:00:42.6]} 51. Bxd5 {[%clk 0:00:46]}
51... Rxd7 {[%clk 0:00:43.5]} 52. b7 {[%clk 0:00:46.3]} 1-0

[Event "*** SCC Grand Prix: Titled Tuesday Blitz"]
[Site "Chess.com"]
[Date "2020.10.13"]
[Round "7"]
[White "BikingBrian"]
[Black "ajdemipopushi"]
[Result "1-0"]
[WhiteElo "2226"]
[BlackElo "2331"]
[TimeControl "180+1"]
[EndTime "11:16:38 PDT"]
[Termination "BikingBrian won on time"]

1. d4 {[%clk 0:03:00.9]} 1... Nf6 {[%clk 0:02:59.6]} 2. Bg5 {[%clk 0:03:00.4]}
2... c5 {[%clk 0:02:57.8]} 3. Nc3 {[%clk 0:03:00.4]} 3... d5 {[%clk 0:02:55.1]}
4. Bxf6 {[%clk 0:02:53.3]} 4... gxf6 {[%clk 0:02:54.7]} 5. e3 {[%clk 0:02:53.8]}
5... Nc6 {[%clk 0:02:54]} 6. dxc5 {[%clk 0:02:52.7]} 6... e6 {[%clk 0:02:52.9]}
7. Na4 {[%clk 0:02:43.8]} 7... Bxc5 {[%clk 0:02:46.4]} 8. Nxc5 {[%clk
0:02:43.4]} 8... Qa5+ {[%clk 0:02:46.1]} 9. c3 {[%clk 0:02:42.6]} 9... Qxc5
{[%clk 0:02:46]} 10. Qh5 {[%clk 0:02:40.5]} 10... Ke7 {[%clk 0:02:35]} 11. Nf3
{[%clk 0:02:35.5]} 11... Bd7 {[%clk 0:02:17.7]} 12. Be2 {[%clk 0:02:34.4]} 12...
Rag8 {[%clk 0:02:03.9]} 13. O-O {[%clk 0:02:24]} 13... e5 {[%clk 0:01:47.1]} 14.
Nd2 {[%clk 0:01:52.3]} 14... Rg5 {[%clk 0:01:41.8]} 15. Qh4 {[%clk 0:01:50.4]}
15... Rhg8 {[%clk 0:01:38.4]} 16. g3 {[%clk 0:01:50.6]} 16... Be6 {[%clk
0:00:51]} 17. Nb3 {[%clk 0:01:43.3]} 17... Qb6 {[%clk 0:00:49.3]} 18. c4 {[%clk
0:01:38.9]} 18... dxc4 {[%clk 0:00:33.9]} 19. Nd2 {[%clk 0:01:35.6]} 19... Qxb2
{[%clk 0:00:30]} 20. Rab1 {[%clk 0:01:04.3]} 20... Qxd2 {[%clk 0:00:25.8]} 21.
Rxb7+ {[%clk 0:01:04.3]} 21... Kf8 {[%clk 0:00:23.3]} 22. Bxc4 {[%clk
0:00:57.3]} 22... Qd6 {[%clk 0:00:14.7]} 23. Bxe6 {[%clk 0:00:42.4]} 23... Qxe6
{[%clk 0:00:14.3]} 24. Qa4 {[%clk 0:00:35.7]} 24... h5 {[%clk 0:00:09.4]} 25.
Rc1 {[%clk 0:00:32.4]} 25... Ne7 {[%clk 0:00:03.6]} 26. Rcc7 {[%clk 0:00:18.1]}
26... Nf5 {[%clk 0:00:02.9]} 27. Rb8+ {[%clk 0:00:15.5]} 27... Kg7 {[%clk
0:00:02.5]} 28. Rxg8+ {[%clk 0:00:16.4]} 28... Kxg8 {[%clk 0:00:02.4]} 29. Qxa7
{[%clk 0:00:15.8]} 29... h4 {[%clk 0:00:01.3]} 30. Qb8+ {[%clk 0:00:15.6]} 1-0

[Event "*** SCC Grand Prix: Titled Tuesday Blitz"]
[Site "Chess.com"]
[Date "2020.10.13"]
[Round "7"]
[White "RobertoJBM"]
[Black "Iskusnyh"]
[Result "1-0"]
[WhiteElo "2715"]
[BlackElo "2571"]
[TimeControl "180+1"]
[EndTime "11:16:39 PDT"]
[Termination "RobertoJBM won on time"]

1. d4 {[%clk 0:03:00.9]} 1... d5 {[%clk 0:02:59]} 2. e3 {[%clk 0:03:01.4]} 2...
Nf6 {[%clk 0:02:57.6]} 3. Nf3 {[%clk 0:03:02.3]} 3... c5 {[%clk 0:02:57.5]} 4.
c3 {[%clk 0:03:02.3]} 4... Nbd7 {[%clk 0:02:55.9]} 5. Nbd2 {[%clk 0:03:02.4]}
5... g6 {[%clk 0:02:55.8]} 6. b4 {[%clk 0:03:01.4]} 6... cxb4 {[%clk 0:02:44]}
7. cxb4 {[%clk 0:03:02.3]} 7... Bg7 {[%clk 0:02:43.9]} 8. Bb2 {[%clk 0:03:02.4]}
8... O-O {[%clk 0:02:43.5]} 9. Be2 {[%clk 0:03:02.2]} 9... Nb6 {[%clk
0:02:40.3]} 10. O-O {[%clk 0:03:00.8]} 10... Bf5 {[%clk 0:02:36.2]} 11. Rc1
{[%clk 0:02:59.1]} 11... Rc8 {[%clk 0:02:32.6]} 12. Qb3 {[%clk 0:02:58.8]} 12...
Ne4 {[%clk 0:02:24.6]} 13. Nxe4 {[%clk 0:02:57.5]} 13... Bxe4 {[%clk 0:02:24.1]}
14. Nd2 {[%clk 0:02:52.2]} 14... Bf5 {[%clk 0:02:20.5]} 15. a4 {[%clk
0:02:51.3]} 15... Qd6 {[%clk 0:02:12.5]} 16. b5 {[%clk 0:02:48.8]} 16... Rxc1
{[%clk 0:02:05.1]} 17. Rxc1 {[%clk 0:02:48.2]} 17... Rc8 {[%clk 0:02:04.7]} 18.
Rxc8+ {[%clk 0:02:47.3]} 18... Nxc8 {[%clk 0:02:02.3]} 19. h3 {[%clk 0:02:15.7]}
19... h5 {[%clk 0:01:50.8]} 20. Bf3 {[%clk 0:02:10.3]} 20... Be6 {[%clk
0:01:42.8]} 21. Qc2 {[%clk 0:02:01.9]} 21... Nb6 {[%clk 0:01:36.7]} 22. a5
{[%clk 0:01:58.3]} 22... Nc4 {[%clk 0:01:29.1]} 23. Nxc4 {[%clk 0:01:56.8]}
23... dxc4 {[%clk 0:01:28.7]} 24. Bxb7 {[%clk 0:01:43.5]} 24... Qb4 {[%clk
0:01:27.6]} 25. Bc6 {[%clk 0:01:39.8]} 25... Qxa5 {[%clk 0:01:25]} 26. Bc3
{[%clk 0:01:30.5]} 26... Qa3 {[%clk 0:01:18.3]} 27. Qd2 {[%clk 0:01:25.8]} 27...
Qb3 {[%clk 0:01:12.6]} 28. Kh2 {[%clk 0:01:23.9]} 28... h4 {[%clk 0:01:05.5]}
29. Bb4 {[%clk 0:01:09.3]} 29... Bf6 {[%clk 0:01:03.3]} 30. Qc3 {[%clk
0:01:06.8]} 30... Qa2 {[%clk 0:00:59]} 31. Qd2 {[%clk 0:01:03.1]} 31... Qb3
{[%clk 0:00:58.3]} 32. Bc3 {[%clk 0:01:01]} 32... g5 {[%clk 0:00:53.3]} 33. Qb2
{[%clk 0:00:58.9]} 33... Qa4 {[%clk 0:00:39.2]} 34. d5 {[%clk 0:00:49.7]} 34...
Bxc3 {[%clk 0:00:35.2]} 35. Qxc3 {[%clk 0:00:50.6]} 35... Bf5 {[%clk 0:00:35]}
36. b6 {[%clk 0:00:46]} 36... Qa6 {[%clk 0:00:22.8]} 37. b7 {[%clk 0:00:41.1]}
37... Qb6 {[%clk 0:00:22.7]} 38. Qe5 {[%clk 0:00:40.9]} 1-0